fUST/lending_fUST_20250627
["ID","MTS","AMOUNT","RATE_DAILY","PERIOD"]
[367926480,1750968648275,-460.0,0.00021917,2]
[367926482,1750968648285,-460.0,0.00021917,2]
[367926484,1750968648295,-460.0,0.00021917,2]
[367926486,1750968648304,-460.0,0.00021917,2]
[367926488,1750968648315,-460.0,0.00021917,2]
[367926490,1750968648324,-151.0,0.00021917,2]
[367926492,1750968648334,-460.0,0.00021917,2]
[367926494,1750968648343,-340.0,0.00021917,2]
[367926496,1750968648352,-460.0,0.00021917,2]
[367926498,1750968648362,-460.0,0.00021917,2]
[367926500,1750968648371,-470.41250401,0.00021917,2]
[367926502,1750968648381,-180.17242835,0.00021917,2]
[367926544,1750968648791,-160.0,0.00021225,2]
[367926546,1750968648801,-836.92866116,0.00021225,2]
[367926548,1750968648812,-643.79,0.00021643,2]
[367926550,1750968648822,-460.0,0.00021643,2]
[367926552,1750968648832,-288.14953329,0.00021917,2]
[367926554,1750968648841,-460.0,0.00021917,2]
[367926556,1750968648850,-460.0,0.00021917,2]
[367926558,1750968648860,-475.24,0.00021917,2]
[367926560,1750968648870,-460.0,0.00021917,2]
[367926562,1750968648879,-460.0,0.00021917,2]
[367926564,1750968648888,-460.0,0.00021917,2]
[367926566,1750968648898,-460.0,0.00021917,2]
[367926568,1750968648907,-460.0,0.00021917,2]
[367926570,1750968648916,-606.63,0.00021917,2]
[367926572,1750968648925,-460.0,0.00021917,2]
[367926574,1750968648935,-460.0,0.00021917,2]
[367926576,1750968648945,-460.0,0.00021917,2]
[367926578,1750968648954,-460.0,0.00021917,2]
[367926580,1750968648964,-230.2231142,0.00021917,2]
[367926582,1750968648973,-188.858653,0.00021917,2]
[367926584,1750968648983,-511.56,0.00021917,2]
[367926585,1750968648992,-460.0,0.00021917,2]
[367926587,1750968649001,-460.0,0.00021917,2]
[367926589,1750968649010,-188.858653,0.00021917,2]
[367926591,1750968649019,-206.97852352,0.00021917,2]
[367926593,1750968649028,-460.0,0.00021917,2]
[367926595,1750968649038,-460.0,0.00021917,2]
[367926597,1750968649047,-540.0,0.00021917,2]
[367926599,1750968649056,-438.44406665,0.00021917,2]
[367926601,1750968649066,-460.0,0.00021917,2]
[367926603,1750968649075,-460.0,0.00021917,2]
[367926605,1750968649085,-460.0,0.00021917,2]
[367926607,1750968649094,-460.0,0.00021917,2]
[367926609,1750968649104,-460.0,0.00021917,2]
[367926611,1750968649113,-460.0,0.00021917,2]
[367926613,1750968649122,-460.0,0.00021917,2]
[367926615,1750968649132,-500.0,0.00021917,2]
[367926617,1750968649141,-460.0,0.00021917,2]
[367926619,1750968649151,-920.68,0.00021917,2]
[367926621,1750968649160,-460.0,0.00021917,2]
[367926623,1750968649170,-460.0,0.00021917,2]
[367926625,1750968649181,-460.45,0.00021917,2]
[367926627,1750968649190,-460.0,0.00021917,2]
[367926628,1750968649199,-460.0,0.00021917,2]
[367926630,1750968649208,-460.0,0.00021917,2]
[367926631,1750968649217,-460.0,0.00021917,2]
[367926633,1750968649228,-460.0,0.00021917,2]
[367926635,1750968649237,-730.24,0.00021917,2]
[367926636,1750968649246,-460.0,0.00021917,2]
[367926637,1750968649255,-164.8806333,0.00021917,2]
[367926638,1750968649264,-460.0,0.00021917,2]
[367926639,1750968649273,-460.0,0.00021917,2]
[367926640,1750968649282,-460.0,0.00021917,2]
[367926641,1750968649291,-460.0,0.00021917,2]
[367926642,1750968649300,-460.0,0.00021917,2]
[367926643,1750968649310,-478.16694588,0.00021917,2]
[367926644,1750968649321,-151.0,0.00021917,2]
[367926645,1750968649330,-360.384192,0.00021917,2]
[367926646,1750968649339,-360.384192,0.00021917,2]
[367926647,1750968649349,-151.0,0.00021917,2]
[367926648,1750968649358,-151.0,0.00021917,2]
[367926649,1750968649367,-460.0,0.00021917,2]
[367926650,1750968649377,-460.0,0.00021917,2]
[367926651,1750968649386,-151.0,0.00021917,2]
[367926652,1750968649395,-460.0,0.00021917,2]
[367926653,1750968649405,-460.0,0.00021917,2]
[367926654,1750968649414,-507.58,0.00021917,2]
[367926655,1750968649423,-460.0,0.00021917,2]
[367926656,1750968649433,-460.0,0.00021917,2]
[367926657,1750968649442,-500.0,0.00021917,2]
[367926658,1750968649453,-500.0,0.00021917,2]
[367926659,1750968649463,-460.0,0.00021917,2]
[367926660,1750968649472,-460.0,0.00021917,2]
[367926661,1750968649481,-460.0,0.00021917,2]
[367926662,1750968649491,-460.0,0.00021917,2]
[367926663,1750968649500,-460.0,0.00021917,2]
[367926664,1750968649509,-460.0,0.00021917,2]
[367926665,1750968649519,-485.25,0.00021917,2]
[367926666,1750968649528,-460.0,0.00021917,2]
[367926667,1750968649538,-460.0,0.00021917,2]
[367926668,1750968649548,-460.0,0.00021917,2]
[367926669,1750968649558,-535.05,0.00021917,2]
[367926670,1750968649567,-961.97,0.00021917,2]
[367926671,1750968649576,-151.0,0.00021917,2]
[367926672,1750968649585,-460.0,0.00021917,2]
[367926673,1750968649595,-682.86,0.00021917,2]
[367926674,1750968649605,-460.0,0.00021917,2]
[367926675,1750968649614,-537.62,0.00021917,2]
[367926676,1750968649623,-460.0,0.00021917,2]
[367926677,1750968649633,-460.0,0.00021917,2]
[367926678,1750968649644,-460.0,0.00021917,2]
[367926679,1750968649654,-367.92680879,0.00021917,2]
[367926680,1750968649664,-500.0,0.00021917,2]
[367926681,1750968649674,-460.0,0.00021917,2]
[367926682,1750968649683,-460.0,0.00021917,2]
[367926683,1750968649693,-460.0,0.00021917,2]
[367926684,1750968649702,-460.0,0.00021917,2]
[367926685,1750968649712,-460.0,0.00021917,2]
[367926686,1750968649722,-460.0,0.00021917,2]
[367926687,1750968649731,-460.0,0.00021917,2]
[367926688,1750968649741,-460.0,0.00021917,2]
[367926689,1750968649751,-460.0,0.00021917,2]
[367926690,1750968649761,-460.0,0.00021917,2]
[367926691,1750968649770,-460.0,0.00021917,2]
[367926692,1750968649780,-4373.4,0.00021917,2]
[367926693,1750968649789,-460.0,0.00021917,2]
[367926694,1750968649799,-460.0,0.00021917,2]
[367926695,1750968649808,-460.0,0.00021917,2]
[367926696,1750968649819,-460.0,0.00021917,2]
[367926697,1750968649828,-460.0,0.00021917,2]
[367926698,1750968649838,-435.66200427,0.00021917,2]
[367926699,1750968649848,-460.0,0.00021917,2]
[367926700,1750968649857,-284.8413281,0.00021917,2]
[367926701,1750968649866,-460.0,0.00021917,2]
[367926702,1750968649876,-1062.68,0.00021917,2]
[367926703,1750968649885,-460.0,0.00021917,2]
[367926704,1750968649895,-460.0,0.00021917,2]
[367926705,1750968649904,-460.0,0.00021917,2]
[367926706,1750968649913,-460.0,0.00021917,2]
[367926707,1750968649923,-460.0,0.00021917,2]
[367926709,1750968649932,-460.0,0.00021917,2]
[367926711,1750968649941,-2213.82,0.00021917,2]
[367926712,1750968649951,-462.86151667,0.00021917,2]
[367926714,1750968649960,-462.21548455,0.00021917,2]
[367926716,1750968649970,-460.0,0.00021917,2]
[367926718,1750968649979,-460.0,0.00021917,2]
[367926719,1750968649989,-460.0,0.00021917,2]
[367926721,1750968649998,-870.21,0.00021917,2]
[367926723,1750968650008,-460.0,0.00021917,2]
[367926725,1750968650017,-460.0,0.00021917,2]
[367926727,1750968650027,-460.0,0.00021917,2]
[367926729,1750968650036,-20.33885424,0.00021917,2]
[367926762,1750968650351,-460.0,0.00021643,2]
[367926763,1750968650360,-358.47553119,0.00021917,2]
[367926765,1750968650370,-460.0,0.00021917,2]
[367926767,1750968650379,-460.0,0.00021917,2]
[367926769,1750968650388,-460.0,0.00021917,2]
[367926771,1750968650397,-3115.51,0.00021917,2]
[367926773,1750968650407,-460.0,0.00021917,2]
[367926775,1750968650416,-577.98,0.00021917,2]
[367926776,1750968650426,-151.0,0.00021917,2]
[367926777,1750968650435,-460.0,0.00021917,2]
[367926778,1750968650445,-430.66465125,0.00021917,2]
[367926779,1750968650458,-460.0,0.00021917,2]
[367926780,1750968650467,-460.0,0.00021917,2]
[367926781,1750968650478,-1623.66,0.00021917,2]
[367926782,1750968650487,-906.73,0.00021917,2]
[367926783,1750968650498,-460.0,0.00021917,2]
[367926784,1750968650507,-460.0,0.00021917,2]
[367926785,1750968650517,-460.0,0.00021917,2]
[367926786,1750968650526,-1333.72,0.00021917,2]
[367926787,1750968650535,-460.0,0.00021917,2]
[367926788,1750968650546,-460.0,0.00021917,2]
[367926789,1750968650555,-460.0,0.00021917,2]
[367926790,1750968650564,-460.0,0.00021917,2]
[367926791,1750968650574,-571.88215911,0.00021917,2]
[367926792,1750968650584,-460.70174676,0.00021917,2]
[367926793,1750968650594,-460.0,0.00021917,2]
[367926794,1750968650603,-151.0,0.00021917,2]
[367926795,1750968650612,-430.0,0.00021917,2]
[367926796,1750968650623,-2127.55,0.00021917,2]
[367926798,1750968650632,-460.0,0.00021917,2]
[367926799,1750968650641,-460.0,0.00021917,2]
[367926800,1750968650651,-460.0,0.00021917,2]
[367926802,1750968650661,-460.0,0.00021917,2]
[367926803,1750968650670,-460.0,0.00021917,2]
[367926806,1750968650680,-460.0,0.00021917,2]
[367926808,1750968650690,-3886.46,0.00021917,2]
[367926810,1750968650699,-460.0,0.00021917,2]
[367926811,1750968650708,-460.0,0.00021917,2]
[367926814,1750968650718,-460.0,0.00021917,2]
[367926816,1750968650727,-460.0,0.00021917,2]
[367926818,1750968650737,-151.0,0.00021917,2]
[367926820,1750968650747,-460.0,0.00021917,2]
[367926822,1750968650756,-460.0,0.00021917,2]
[367926824,1750968650766,-460.0,0.00021917,2]
[367926826,1750968650776,-460.0,0.00021917,2]
[367926828,1750968650785,-460.0,0.00021917,2]
[367926830,1750968650795,-694.02,0.00021917,2]
[367926832,1750968650804,-687.75,0.00021917,2]
[367926834,1750968650813,-170.896228,0.00021917,2]
[367926836,1750968650823,-460.0,0.00021917,2]
[367926838,1750968650832,-291.26230414,0.00021917,2]
[367926840,1750968650842,-170.896228,0.00021917,2]
[367926842,1750968650852,-460.0,0.00021917,2]
[367926844,1750968650861,-460.0,0.00021917,2]
[367926846,1750968650871,-151.0,0.00021917,2]
[367926848,1750968650880,-460.0,0.00021917,2]
[367926850,1750968650890,-1049.3,0.00021917,2]
[367926852,1750968650899,-460.0,0.00021917,2]
[367926854,1750968650908,-460.0,0.00021917,2]
[367926856,1750968650918,-440.0,0.00021917,2]
[367926858,1750968650927,-460.0,0.00021917,2]
[367926860,1750968650937,-460.0,0.00021917,2]
[367926862,1750968650947,-460.0,0.00021917,2]
[367926864,1750968650956,-460.0,0.00021917,2]
[367926866,1750968650965,-460.0,0.00021917,2]
[367926868,1750968650975,-460.0,0.00021917,2]
[367926870,1750968650985,-494.65,0.00021917,2]
[367926872,1750968650994,-460.0,0.00021917,2]
[367926874,1750968651004,-460.0,0.00021917,2]
[367926877,1750968651014,-252.83999872,0.00021917,2]
[367926879,1750968651023,-460.0,0.00021917,2]
[367926881,1750968651033,-626.45,0.00021917,2]
[367926883,1750968651042,-480.02,0.00021917,2]
[367926885,1750968651051,-460.0,0.00021917,2]
[367926887,1750968651061,-572.117446,0.00021917,2]
[367926889,1750968651071,-460.0,0.00021917,2]
[367926891,1750968651081,-439.38736502,0.00021917,2]
[367926892,1750968651090,-542.0,0.00021917,2]
[367926895,1750968651100,-151.0,0.00021917,2]
[367926897,1750968651110,-460.0,0.00021917,2]
[367926899,1750968651119,-460.0,0.00021917,2]
[367926901,1750968651132,-572.117446,0.00021917,2]
[367926903,1750968651142,-460.0,0.00021917,2]
[367926905,1750968651151,-1230.12,0.00021917,2]
[367926907,1750968651161,-460.0,0.00021917,2]
[367926909,1750968651170,-460.0,0.00021917,2]
[367926911,1750968651179,-460.0,0.00021917,2]
[367926913,1750968651189,-460.0,0.00021917,2]
[367926915,1750968651199,-460.0,0.00021917,2]
[367926917,1750968651209,-357.9491647,0.00021917,2]
[367926919,1750968651220,-460.0,0.00021917,2]
[367926921,1750968651229,-460.0,0.00021917,2]
[367926924,1750968651239,-2451.27,0.00021917,2]
[367926926,1750968651248,-460.0,0.00021917,2]
[367926928,1750968651258,-460.0,0.00021917,2]
[367926930,1750968651267,-460.0,0.00021917,2]
[367926932,1750968651276,-460.0,0.00021917,2]
[367926934,1750968651285,-515.07,0.00021917,2]
[367926936,1750968651295,-460.0,0.00021917,2]
[367926938,1750968651304,-2606.45,0.00021917,2]
[367926940,1750968651313,-541.53,0.00021917,2]
[367926942,1750968651323,-151.0,0.00021917,2]
[367926944,1750968651332,-460.0,0.00021917,2]
[367926946,1750968651342,-460.0,0.00021917,2]
[367926948,1750968651351,-151.0,0.00021917,2]
[367926950,1750968651360,-460.0,0.00021917,2]
[367926952,1750968651369,-460.0,0.00021917,2]
[367926954,1750968651379,-250.35656205,0.00021917,2]
[367926956,1750968651388,-460.0,0.00021917,2]
[367926958,1750968651398,-715.7,0.00021917,2]
[367926960,1750968651407,-460.0,0.00021917,2]
[367926962,1750968651417,-460.0,0.00021917,2]
[367926964,1750968651427,-460.0,0.00021917,2]
[367926966,1750968651436,-460.0,0.00021917,2]
[367926968,1750968651447,-594.03,0.00021917,2]
[367926970,1750968651459,-460.0,0.00021917,2]
[367926972,1750968651469,-498.86,0.00021917,2]
[367926974,1750968651479,-748.59,0.00021917,2]
[367926976,1750968651490,-3541.86,0.00021917,2]
[367926978,1750968651499,-501.07,0.00021917,2]
[367926980,1750968651509,-151.0,0.00021917,2]
[367926982,1750968651518,-460.0,0.00021917,2]
[367926984,1750968651528,-460.0,0.00021917,2]
[367926986,1750968651538,-151.0,0.00021917,2]
[367926988,1750968651547,-460.0,0.00021917,2]
[367926990,1750968651557,-516.4,0.00021917,2]
[367926992,1750968651566,-2328.66,0.00021917,2]
[367926995,1750968651583,-460.0,0.00021917,2]
[367926997,1750968651593,-415.66496305,0.00021917,2]
[367926999,1750968651602,-460.0,0.00021917,2]
[367927000,1750968651612,-1150.3,0.00021917,2]
[367927003,1750968651621,-1036.86,0.00021917,2]
[367927005,1750968651631,-460.0,0.00021917,2]
[367927007,1750968651641,-441.47472723,0.00021917,2]
[367927009,1750968651651,-460.0,0.00021917,2]
[367927011,1750968651661,-659.78,0.00021917,2]
[367927013,1750968651671,-610.62,0.00021917,2]
[367927015,1750968651680,-460.0,0.00021917,2]
[367927017,1750968651690,-460.0,0.00021917,2]
[367927019,1750968651699,-463.63106265,0.00021917,2]
[367927021,1750968651709,-460.0,0.00021917,2]
[367927023,1750968651719,-460.0,0.00021917,2]
[367927025,1750968651729,-460.0,0.00021917,2]
[367927027,1750968651738,-585.64,0.00021917,2]
[367927029,1750968651748,-460.0,0.00021917,2]
[367927031,1750968651758,-576.73,0.00021917,2]
[367927033,1750968651768,-528.66,0.00021917,2]
[367927035,1750968651778,-750.82,0.00021917,2]
[367927037,1750968651787,-460.0,0.00021917,2]
[367927039,1750968651797,-460.0,0.00021917,2]
[367927041,1750968651807,-1633.16,0.00021917,2]
[367927043,1750968651817,-505.21783726,0.00021917,2]
[367927046,1750968651830,-460.0,0.00021917,2]
[367927048,1750968651840,-151.000001,0.00021917,2]
[367927050,1750968651849,-488.63117572,0.00021917,2]
[367927052,1750968651858,-675.12,0.00021917,2]
[367927054,1750968651868,-1510.91,0.00021917,2]
[367927056,1750968651878,-587.13273491,0.00021917,2]
[367927058,1750968651887,-460.0,0.00021917,2]
[367927060,1750968651898,-460.0,0.00021917,2]
[367927062,1750968651907,-461.81099252,0.00021917,2]
[367927064,1750968651917,-561.94,0.00021917,2]
[367927066,1750968651927,-460.0,0.00021917,2]
[367927068,1750968651936,-460.0,0.00021917,2]
[367927070,1750968651946,-440.0,0.00021917,2]
[367927086,1750968651956,-151.0,0.00021917,2]
[367927088,1750968652095,-460.0,0.00021917,2]
[367927090,1750968652104,-826.54,0.00021917,2]
[367927092,1750968652113,-258.813455,0.00021917,2]
[367927094,1750968652122,-460.0,0.00021917,2]
[367927096,1750968652132,-358.00059963,0.00021917,2]
[367927098,1750968652142,-429.50860139,0.00021917,2]
[367927100,1750968652151,-460.0,0.00021917,2]
[367927102,1750968652161,-770.3,0.00021917,2]
[367927104,1750968652170,-1567.91,0.00021917,2]
[367927106,1750968652180,-460.0,0.00021917,2]
[367927108,1750968652190,-500.0,0.00021917,2]
[367927110,1750968652199,-500.0,0.00021917,2]
[367927112,1750968652208,-460.0,0.00021917,2]
[367927114,1750968652217,-3629.06,0.00021917,2]
[367927116,1750968652226,-946.55,0.00021917,2]
[367927118,1750968652235,-150.10202009,0.00021917,2]
[367927120,1750968652245,-460.0,0.00021917,2]
[367927122,1750968652254,-460.0,0.00021917,2]
[367927124,1750968652263,-5670.12,0.00021917,2]
[367927126,1750968652273,-827.88,0.00021917,2]
[367927128,1750968652283,-1114.94,0.00021917,2]
[367927130,1750968652292,-628.06,0.00021917,2]
[367927132,1750968652303,-228.7661709,0.00021917,2]
[367927134,1750968652312,-1115.36,0.00021917,2]
[367927136,1750968652321,-711.77,0.00021917,2]
[367927138,1750968652330,-460.0,0.00021917,2]
[367927140,1750968652340,-460.0,0.00021917,2]
[367927142,1750968652349,-710.02,0.00021917,2]
[367927144,1750968652359,-1997.64,0.00021917,2]
[367927146,1750968652368,-785.17,0.00021917,2]
[367927148,1750968652377,-460.0,0.00021917,2]
[367927150,1750968652386,-460.0,0.00021917,2]
[367927152,1750968652395,-460.0,0.00021917,2]
[367927154,1750968652405,-461.49898289,0.00021917,2]
[367927156,1750968652414,-460.0,0.00021917,2]
[367927158,1750968652423,-460.0,0.00021917,2]
[367927160,1750968652432,-1048.38,0.00021917,2]
[367927162,1750968652442,-707.16,0.00021917,2]
[367927164,1750968652455,-460.0,0.00021917,2]
[367927166,1750968652464,-460.0,0.00021917,2]
[367927168,1750968652474,-1411.85,0.00021917,2]
[367927170,1750968652483,-460.0,0.00021917,2]
[367927172,1750968652494,-460.0,0.00021917,2]
[367927174,1750968652503,-643.79,0.00021917,2]
[367927176,1750968652512,-460.0,0.00021917,2]
[367927178,1750968652523,-151.0,0.00021918,2]
[367927180,1750968652532,-151.0,0.00021918,2]
[367927182,1750968652541,-151.0,0.00021918,2]
[367927184,1750968652551,-150.0,0.00021918,2]
[367927186,1750968652560,-449.57729462,0.00021918,2]
[367927188,1750968652571,-1000.0,0.0002192,5]
[367927190,1750968652580,-853.44140853,0.00021934,6]
[367927192,1750968652589,-1000.0,0.0002194,5]
[367927194,1750968652599,-1000.0,0.0002196,5]
[367927196,1750968652608,-500.0,0.00021973,2]
[367927198,1750968652619,-500.0,0.00021973,2]
[367927200,1750968652628,-500.0,0.00021973,2]
[367927202,1750968652637,-500.0,0.00021973,2]
[367927204,1750968652647,-500.41164183,0.00021973,2]
[367927206,1750968652656,-274.68275614,0.00021973,2]
[367927208,1750968652665,-500.0,0.00021973,2]
[367927210,1750968652674,-500.0,0.00021973,2]
[367927212,1750968652684,-500.0,0.00021973,2]
[367927214,1750968652693,-500.0,0.00021973,2]
[367927216,1750968652702,-501.07557052,0.00021973,2]
[367927218,1750968652712,-245.6856227,0.00021973,2]
[367927220,1750968652722,-500.0,0.00021973,2]
[367927222,1750968652731,-500.0,0.00021973,2]
[367927224,1750968652740,-500.0,0.00021973,2]
[367927226,1750968652750,-500.0,0.00021973,2]
[367927228,1750968652759,-500.0,0.00021973,2]
[367927230,1750968652768,-500.0,0.00021973,2]
[367927232,1750968652778,-500.0,0.00021973,2]
[367927234,1750968652787,-500.0,0.00021973,2]
[367927236,1750968652797,-333.4424912,0.00021973,2]
[367927238,1750968652806,-500.0,0.00021973,2]
[367927240,1750968652816,-500.0,0.00021973,2]
[367927242,1750968652826,-500.0,0.00021973,2]
[367927244,1750968652836,-500.0,0.00021973,2]
[367927246,1750968652846,-500.0,0.00021973,2]
[367927248,1750968652855,-500.0,0.00021973,2]
[367927250,1750968652865,-500.0,0.00021973,2]
[367927252,1750968652874,-500.0,0.00021973,2]
[367927254,1750968652883,-500.0,0.00021973,2]
[367927256,1750968652893,-500.0,0.00021973,2]
[367927258,1750968652902,-500.0,0.00021973,2]
[367927260,1750968652911,-580.01754329,0.00021973,2]
[367927262,1750968652920,-500.0,0.00021973,2]
[367927264,1750968652929,-500.0,0.00021973,2]
[367927266,1750968652938,-500.0,0.00021973,2]
[367927268,1750968652948,-500.0,0.00021973,2]
[367927270,1750968652957,-500.0,0.00021973,2]
[367927272,1750968652966,-600.0,0.00021973,2]
[367927274,1750968652976,-432.95481487,0.00021973,2]
[367927276,1750968652985,-500.0,0.00021973,2]
[367927278,1750968652994,-500.0,0.00021973,2]
[367927280,1750968653004,-500.0,0.00021973,2]
[367927282,1750968653013,-2263.89,0.00021973,2]
[367927284,1750968653022,-197.17571245,0.00021973,2]
[367927286,1750968653031,-151.0,0.00021973,7]
[367927288,1750968653041,-219.022583,0.00021973,7]
[367927290,1750968653051,-170.896228,0.00021973,7]
[367927292,1750968653060,-170.896228,0.00021973,7]
[367927295,1750968653073,-151.0,0.00021973,7]
[367927297,1750968653082,-151.0,0.00021973,7]
[367927298,1750968653092,-151.0,0.00021973,7]
[367927301,1750968653101,-151.0,0.00021973,7]
[367927302,1750968653111,-151.0,0.00021973,7]
[367927304,1750968653120,-151.0,0.00021973,7]
[367927307,1750968653130,-155.0,0.00021973,2]
[367927309,1750968653139,-151.0,0.00021973,7]
[367927310,1750968653150,-1000.0,0.0002198,5]
[367927312,1750968653159,-2874.18214536,0.0002199,2]
[367927313,1750968653168,-151.0,0.00021998,7]
[367927315,1750968653177,-572.117446,0.00021998,7]
[367927317,1750968653186,-572.117446,0.00021998,7]
[367927319,1750968653195,-282.18117478,0.00021999,2]
[367927321,1750968653204,-202.632403,0.00021999,7]
[367927323,1750968653213,-151.0,0.00021999,7]
[367927325,1750968653222,-151.0,0.00021999,7]
[367927327,1750968653232,-151.0,0.00021999,7]
[367927329,1750968653241,-151.0,0.00021999,7]
[367927331,1750968653251,-151.0,0.00021999,7]
[367927333,1750968653260,-246.811581,0.00021999,7]
[367927335,1750968653270,-151.0,0.00021999,7]
[367927337,1750968653279,-200.0,0.00021999,2]
[367927339,1750968653287,-500.0,0.00022,8]
[367927341,1750968653297,-500.0,0.00022,8]
[367927343,1750968653307,-25969.48535515,0.00022,2]
[367927368,1750968653562,-278.11996181,0.00021543,2]
[367927370,1750968653574,-460.0,0.00021643,2]
[367927372,1750968653585,-460.0,0.00021643,2]
[367927373,1750968653595,-460.0,0.00021643,2]
[367927375,1750968653604,-346.82,0.00021917,2]
[367927377,1750968653614,-460.0,0.00021917,2]
[367927379,1750968653624,-4121.51314408,0.00022,2]
[367928702,1750968782945,165.508446,0.00013699,2]
[367928726,1750969832085,-215.73411112,0.000189,2]
[367928728,1750969832094,-196.59812075,0.00018981,2]
[367928730,1750969832106,-103.40187925,0.00018981,2]
[367928732,1750969832118,-300.0,0.00018981,2]
[367928734,1750969832127,-300.0,0.00018981,2]
[367928736,1750969832136,-256.65395229,0.00018981,2]
[367928738,1750969832148,-43.34604771,0.00018981,2]
[367928740,1750969832157,-563.49647318,0.00018981,2]
[367928743,1750969832177,-636.50352682,0.00018981,2]
[367928745,1750969832187,-329.45151399,0.00018982,2]
[367928747,1750969832199,-9952.57633253,0.00018982,2]
[367928750,1750969832210,-158.49393,0.0001968,2]
[367928752,1750969832220,-176.0,0.00020566,2]
[367928755,1750969832229,-420.0,0.0002069,2]
[367928758,1750969832238,-420.0,0.0002069,2]
[367928760,1750969832248,-165.163626,0.00020772,2]
[367928763,1750969832257,-165.163626,0.00020786,4]
[367928766,1750969832267,-1200.0,0.0002079,2]
[367928769,1750969832276,-207.4,0.00020806,2]
[367928772,1750969832286,-666.0,0.00020806,2]
[367928774,1750969832295,-300.0,0.00020816,2]
[367928777,1750969832305,-12560.17507789,0.00020819,2]
[367928780,1750969832314,-160.0,0.00020819,2]
[367928783,1750969832324,-160.0,0.00020819,2]
[367928785,1750969832333,-168.0,0.00020828,2]
[367928788,1750969832342,-690.642,0.00020861,2]
[367928790,1750969832351,-176.0,0.00020888,2]
[367928792,1750969832360,-331.358,0.00020916,2]
[367928794,1750969832371,-160.0,0.00020977,2]
[367928796,1750969832380,-160.0,0.00020977,2]
[367928799,1750969832390,-846.92323443,0.00020977,2]
[367928802,1750969832399,-214.88139422,0.00020977,2]
[367928805,1750969832408,-160.0,0.00020979,2]
[367928808,1750969832417,-213.72380786,0.00020979,2]
[367928811,1750969832426,-230.24506774,0.00020979,2]
[367928814,1750969832435,-160.0,0.00020979,2]
[367928817,1750969832444,-836.92866116,0.00020979,2]
[367928819,1750969832453,-6367.41,0.00020989,10]
[367928822,1750969832462,-31995.96259426,0.00020999,2]
[367928826,1750969832474,-45590.05177405,0.00020999,2]
[367928830,1750969832498,-20177.71413169,0.00020999,2]
[367928832,1750969832507,-11780.0,0.00021,2]
[367928834,1750969832516,-500.0,0.00021,2]
[367928836,1750969832525,-500.0,0.00021,2]
[367928838,1750969832534,-500.0,0.00021,2]
[367928839,1750969832544,-500.0,0.00021,2]
[367928841,1750969832553,-168.0,0.0002108,2]
[367928843,1750969832563,-168.0,0.00021091,2]
[367928845,1750969832573,-158.49393,0.0002112,7]
[367928847,1750969832582,-176.0,0.00021169,2]
[367928849,1750969832591,-176.0,0.0002117,2]
[367928851,1750969832600,-235.121,0.00021282,2]
[367928853,1750969832610,-654.0,0.00021521,2]